bitfinex-derivatives/quotes_ETHF0:USTF0_20260131
["timestamp","ask_amount","ask_price","bid_price","bid_amount"]
[1769891681201,0.16032196,2368.5,2367.5,5.1733599]
[1769891681394,0.00401856,2368.6,2367.6,0.15167908]
[1769891682293,0.36981534,2368.2,2367.3,5.02507962]
[1769891682493,0.15839534,2368.1,2367.3,0.0033988]
[1769891682691,5.862,2368.0,2365.9,6.27486298]
[1769891682901,0.21153,2366.9,2365.7,17.54987464]
[1769891683095,0.21149,2367.4,2365.8,17.54987464]
[1769891683289,0.21149,2367.4,2365.5,3.489]
[1769891683290,5.862,2368.0,2365.7,3.382]
[1769891683494,0.21148,2367.5,2365.7,3.59363]
[1769891683691,0.21670767,2367.5,2366.3,3.89822537]
[1769891683997,0.21670767,2367.5,2366.4,3.491]
[1769891684197,0.21670767,2367.5,2366.6,3.89822537]
[1769891684595,0.21670767,2367.5,2366.7,21.44810001]
[1769891684899,0.21670767,2367.5,2366.8,0.16290157]
[1769891685101,0.21670767,2367.5,2366.9,17.54987464]
[1769891685497,0.21142,2368.1,2367.4,4.05873919]
[1769891685794,0.00488129,2368.8,2367.5,0.16051382]
[1769891686197,0.2114,2368.4,2367.5,17.71038846]
[1769891686601,0.21506093,2368.4,2367.5,17.71348703]
[1769891687103,0.21506093,2368.4,2367.6,0.16091502]
[1769891687601,0.21506093,2368.4,2367.8,0.16091502]
[1769891688395,0.00366093,2368.4,2367.5,0.00309857]
[1769891688601,0.0040789,2368.1,2366.7,3.382]
[1769891688803,0.21149,2367.3,2366.7,3.382]
[1769891688998,0.2115,2367.2,2366.7,21.09278966]
[1769891689305,0.0040789,2367.7,2366.8,4.05954638]
[1769891689503,0.21147,2367.6,2366.8,0.16574287]
[1769891689704,0.21147,2367.5,2366.8,0.16574287]
[1769891689999,0.21147,2367.5,2367.0,0.16132101]
[1769891690307,0.21147,2367.5,2367.1,0.16132101]
[1769891690508,0.00326691,2368.1,2367.2,3.89822537]
[1769891690701,0.21144,2367.9,2367.2,0.16132101]
[1769891690903,0.21144,2367.9,2367.3,17.54987464]
[1769891691304,0.21144,2367.9,2367.3,21.60959019]
[1769891692099,0.00366093,2368.4,2367.5,0.16149018]
[1769891692300,0.2114,2368.3,2367.7,0.16149018]
[1769891692500,0.00366093,2368.4,2368.0,3.89822537]
[1769891692802,0.00292857,2369.1,2367.6,17.54987464]
[1769891692803,0.07642002,2369.3,2368.1,0.16149018]
[1769891693003,0.56460851,2369.3,2368.1,0.16149018]
[1769891693306,0.21141,2368.2,2367.5,3.523]
[1769891693508,0.56167994,2369.3,2366.7,3.382]
[1769891693509,0.15839534,2368.5,2366.7,3.382]
[1769891693708,0.16377522,2368.5,2366.9,20.02887464]
[1769891693903,0.16377522,2368.5,2367.0,3.89822537]
[1769891694301,0.21144,2367.9,2367.1,17.54987464]
[1769891694506,0.21144,2367.9,2366.9,21.07387464]
[1769891694807,0.21144,2367.9,2367.1,3.89822537]
[1769891694998,0.21144,2367.9,2367.2,3.89822537]
[1769891695201,0.21144,2367.9,2367.1,4.04990445]
[1769891695407,0.21144,2367.9,2367.2,3.89822537]
[1769891695606,0.21144,2367.9,2367.3,3.89822537]
[1769891695808,0.21144,2367.9,2367.2,3.89822537]
[1769891696202,0.21144,2367.9,2367.3,3.89822537]
[1769891696401,0.21144,2367.9,2367.2,21.44810001]
[1769891696604,0.21144,2367.9,2367.3,3.89822537]
[1769891697106,0.21144,2367.9,2367.4,21.59977909]
[1769891697307,0.21144,2367.9,2367.4,4.04990445]
[1769891697807,0.00537988,2368.5,2367.8,3.89822537]
[1769891698001,0.2114,2368.3,2367.6,0.15167908]
[1769891698202,0.2114,2368.3,2367.7,0.15167908]
[1769891698606,0.2114,2368.3,2367.8,4.04990445]
[1769891698807,0.2114,2368.3,2367.8,0.15167908]
[1769891699110,0.2114,2368.3,2367.9,4.04990445]
[1769891699408,0.2114,2368.3,2367.9,0.15167908]
[1769891699605,0.2114,2368.3,2367.9,4.04990445]
[1769891699909,0.15839534,2369.5,2368.0,0.15167908]
[1769891700106,0.21135,2368.9,2368.0,0.15167908]
[1769891700307,0.21135,2368.9,2368.1,17.54987464]
[1769891700507,0.21135,2368.9,2368.1,21.44810001]
[1769891700706,0.07347531,2369.7,2368.1,21.44810001]
[1769891700707,0.15839534,2369.3,2368.4,0.15167908]
[1769891700899,0.00391397,2369.3,2368.4,0.15167908]
[1769891701101,0.15839534,2370.6,2369.3,0.15167908]
[1769891701305,0.21119,2370.7,2369.6,0.15167908]
[1769891701505,0.21123,2370.2,2369.2,3.68667908]
[1769891701704,0.21118,2370.8,2369.8,4.04990445]
[1769891701903,0.21118,2370.8,2369.3,17.54987464]
[1769891701904,0.21113,2371.4,2370.1,0.15167908]
[1769891702109,0.21107,2372.1,2370.6,0.15167908]
[1769891702307,0.21107,2372.1,2371.0,0.15167908]
[1769891702606,10.70041664,2372.6,2371.2,0.15167908]
[1769891702806,0.21101,2372.7,2371.5,0.15167908]
[1769891703110,0.21101,2372.7,2371.9,0.15167908]
[1769891703111,0.00527456,2372.7,2371.9,0.15167908]
[1769891703311,0.21095,2373.4,2372.4,3.89822537]
[1769891703608,0.21095,2373.4,2371.9,0.00483312]
[1769891703609,0.15839534,2373.4,2372.2,3.89822537]
[1769891703811,0.36938534,2373.0,2371.9,0.00483312]
[1769891704011,0.36939534,2372.9,2372.0,17.54987464]
[1769891704306,0.15839534,2372.4,2371.9,1e-08]
[1769891704502,0.36936534,2373.2,2371.9,17.54987465]
[1769891704705,0.15839534,2373.9,2372.4,0.15167908]
[1769891705012,0.49370509,2374.1,2372.8,0.15167908]
[1769891705304,0.00322955,2374.1,2372.8,0.15167908]
[1769891705501,0.00322955,2374.1,2373.3,4.04990445]
[1769891705707,0.36920534,2375.0,2373.6,0.15167908]
[1769891705902,0.15839534,2374.9,2372.8,0.15167908]
[1769891706106,0.15839534,2374.2,2373.0,0.15167908]
[1769891706304,0.15839534,2374.2,2372.9,17.54987464]
[1769891706508,0.15839534,2373.9,2372.7,3.379]
[1769891706704,0.36933534,2373.5,2372.0,3.532]
[1769891706906,0.15839534,2373.4,2372.1,17.54987464]
[1769891707303,0.36934534,2373.4,2372.1,21.44810001]
[1769891707515,0.15791641,2372.9,2371.5,3.379]
[1769891707710,0.21107,2372.1,2371.7,17.12377464]
[1769891708013,0.15791641,2372.0,2370.4,17.12377464]
[1769891708209,0.15791641,2371.7,2370.4,17.27405056]
[1769891708415,0.36902641,2371.6,2370.4,17.12377464]
[1769891708614,0.48159432,2371.7,2370.4,17.12377464]
[1769891708615,0.15791641,2371.3,2370.4,17.12377464]
[1769891709114,0.15791641,2370.8,2369.2,3.69927592]
[1769891709305,0.15791641,2370.8,2369.6,17.12377464]
[1769891709610,0.16307442,2370.8,2369.6,17.12862456]
[1769891709814,0.16307442,2370.8,2368.2,0.2114]
[1769891709815,0.15791641,2370.5,2368.6,0.15027592]
[1769891710018,0.15791641,2370.5,2369.4,3.89822537]
[1769891710314,0.15791641,2370.5,2369.1,0.15027592]
[1769891710511,0.15791641,2370.5,2369.2,21.02200001]
[1769891710818,0.15791641,2370.5,2369.3,3.89822537]
[1769891711117,0.15791641,2370.5,2369.3,0.15027592]
[1769891711309,0.15791641,2370.5,2369.5,3.89822537]
[1769891711821,0.00515801,2370.8,2369.9,3.89822537]
[1769891712215,0.00515801,2370.8,2370.0,17.12377464]
[1769891712416,0.00515801,2370.8,2370.0,21.02200001]
[1769891713220,0.00515801,2370.8,2370.1,3.89822537]
[1769891713720,0.00515801,2370.8,2370.2,21.02200001]
[1769891713920,0.00515801,2370.8,2370.0,3.89822537]
[1769891714121,0.00515801,2370.8,2370.1,17.12377464]
[1769891714322,0.00515801,2370.8,2370.2,17.12377464]
[1769891714521,0.00515801,2370.8,2370.2,21.02200001]
[1769891714722,0.16307442,2370.8,2370.3,3.89822537]
[1769891714927,0.15791641,2370.5,2369.1,0.15027592]
[1769891715129,0.15791641,2370.5,2369.3,17.12377464]
[1769891715321,0.15791641,2370.1,2369.2,0.00476843]
[1769891715522,0.15791641,2370.1,2369.2,1e-08]
[1769891715731,0.15791641,2369.8,2369.2,1e-08]
[1769891716031,0.15791641,2369.6,2368.5,2.62627592]
[1769891716234,0.15791641,2369.6,2368.6,17.12377464]
[1769891716524,0.15791641,2369.5,2368.3,4.04850129]
[1769891716724,0.2113,2369.5,2368.5,3.89822537]
[1769891716930,3.377,2370.5,2368.4,15.75717932]
[1769891716931,0.36926641,2368.9,2368.4,15.75717932]
[1769891717124,0.21135,2368.9,2367.6,0.15027592]
[1769891717325,0.15791641,2368.8,2367.9,3.89822537]
[1769891717523,0.15791641,2368.8,2368.0,3.89822537]
[1769891717927,0.16159521,2368.8,2368.1,19.65540469]
[1769891718121,0.21137,2368.7,2368.0,0.00394708]
[1769891718321,0.15791641,2368.1,2366.9,3.377]
[1769891718526,0.15791641,2368.1,2367.3,3.89822537]
[1769891718726,0.0036788,2368.8,2367.0,15.90745524]
[1769891718727,0.15791641,2368.5,2367.5,3.89822537]
[1769891718928,0.15791641,2368.5,2367.3,0.15027592]
[1769891719126,0.15791641,2368.5,2367.3,4.04850129]
[1769891719431,0.15791641,2368.5,2367.5,3.89822537]
[1769891719736,0.21138,2368.5,2367.8,3.89822537]
[1769891720030,0.0036788,2368.8,2367.9,3.89822537]
[1769891720227,0.0036788,2368.8,2368.2,3.89822537]
[1769891720529,0.0036788,2368.8,2368.0,0.15027592]
[1769891720725,0.16159521,2368.8,2368.1,15.75717932]
[1769891720928,0.16159521,2368.8,2367.3,0.15335993]
[1769891720929,0.21138,2368.6,2367.7,0.15027592]
[1769891721323,0.21138,2368.6,2367.9,3.45385537]
[1769891721721,0.21138,2368.6,2368.2,3.45385537]
[1769891721925,0.15791641,2368.0,2367.3,0.00308401]
[1769891722131,0.15791641,2368.0,2367.4,15.75717932]
[1769891722322,0.15791641,2367.6,2367.3,0.00308401]
[1769891722527,0.36938641,2367.6,2366.5,2.477]
[1769891722727,0.15791641,2367.4,2366.6,18.28333469]
[1769891723031,0.15791641,2367.4,2366.0,0.15027592]
[1769891723231,0.15791641,2367.4,2366.2,0.15027592]
[1769891723429,0.15791641,2367.8,2366.2,0.1547126]
[1769891723622,0.36938641,2367.6,2366.3,15.90745524]
[1769891723828,0.36938641,2367.6,2366.4,0.15027592]
[1769891724027,0.21147,2367.5,2366.7,2.52615537]
[1769891724232,0.21149,2367.3,2366.5,18.28333469]
[1769891724434,0.36940641,2367.3,2366.3,15.75717932]
[1769891724633,0.21151,2367.1,2366.4,2.52615537]
[1769891724826,0.21151,2367.1,2366.3,15.75717932]
[1769891724827,0.36944641,2366.9,2366.3,15.75717932]
[1769891725531,0.15791641,2366.8,2366.2,0.00443668]
[1769891725922,0.15791641,2366.8,2366.3,2.52615537]
[1769891726326,0.15791641,2366.8,2366.4,2.52615537]
[1769891726528,0.15791641,2366.8,2366.3,2.52615537]
[1769891727025,0.15791641,2366.8,2366.2,0.00443668]
[1769891727332,0.36945641,2366.8,2366.2,2.53059205]
[1769891727531,0.21155,2366.7,2366.2,15.761616]
[1769891727731,0.21155,2366.7,2366.3,2.52615537]
[1769891728032,0.36946641,2366.6,2366.2,0.00443668]
[1769891728533,0.36946641,2366.6,2366.3,2.08765537]
[1769891728725,0.15791641,2366.9,2365.2,0.15027592]
[1769891728928,0.21159,2366.2,2365.3,15.90745524]
[1769891729131,0.21163,2365.8,2365.4,15.75717932]
[1769891729431,0.21157,2366.4,2364.9,0.15027592]
[1769891729631,0.21157,2366.4,2365.7,0.15027592]
[1769891729824,0.21157,2366.4,2365.7,0.15428084]
[1769891730028,0.00379669,2367.1,2366.3,1.28433574]
[1769891730222,0.21156,2366.5,2365.8,15.92010697]
[1769891730631,0.21156,2366.5,2365.9,1.44726339]
[1769891730829,0.21156,2366.5,2366.1,0.16292765]
[1769891731032,0.00379669,2367.1,2366.3,0.16292765]
[1769891731427,0.00379669,2367.1,2365.7,0.00400492]
[1769891731828,0.00379669,2367.1,2365.9,1.28433574]
[1769891732027,0.00379669,2367.1,2366.0,1.28433574]
[1769891732233,0.00379669,2367.1,2365.9,1.28433574]
[1769891732534,0.21157,2366.5,2365.8,15.75717932]
[1769891732723,0.15791641,2366.9,2365.8,15.75717932]
[1769891732928,0.21152,2367.0,2365.8,15.75717932]
[1769891733123,0.21149,2367.4,2365.9,3.587]
[1769891733333,0.15791641,2367.4,2366.0,0.64962574]
[1769891733524,0.15791641,2367.8,2366.5,0.79990166]
[1769891733730,0.15791641,2367.5,2366.1,0.15027592]
[1769891733928,0.15791641,2367.5,2365.7,0.00400492]
[1769891733929,0.21155,2366.7,2365.7,0.15428084]
[1769891734130,0.21645979,2366.7,2365.7,0.15428084]
[1769891734329,0.21158,2366.4,2366.0,0.64962574]
[1769891734537,0.15791641,2367.1,2366.3,0.21780926]
[1769891734729,0.21153,2366.9,2366.1,0.36808518]
[1769891734929,0.21154,2366.8,2366.2,15.75717932]
[1769891735332,0.21154,2366.8,2366.5,0.21780926]
[1769891735534,0.21573262,2366.8,2366.5,0.21780926]
[1769891735733,3.53991641,2367.4,2366.6,0.21780926]
[1769891736035,0.15791641,2367.3,2366.2,15.75717932]
[1769891736236,0.21154,2366.8,2366.2,15.75717932]
[1769891736430,0.21158,2366.3,2365.7,0.15428084]
[1769891736635,0.21158,2366.3,2366.1,0.21780926]
[1769891736837,0.21159,2366.2,2365.8,15.75717932]
[1769891737037,0.21154,2366.7,2365.9,0.14790787]
[1769891737534,0.21154,2366.7,2366.1,0.14790787]
[1769891738237,0.21625152,2366.7,2366.1,0.14790787]
[1769891738437,0.21625152,2366.7,2366.2,15.75717932]
[1769891738635,0.21625152,2366.7,2365.9,15.75717932]
[1769891739136,0.21625152,2366.7,2366.0,0.14790787]
[1769891739530,0.21625152,2366.7,2366.1,15.75717932]
[1769891740536,0.21156,2366.6,2366.1,15.75717932]
[1769891741229,0.21156,2366.6,2366.1,15.90508719]
[1769891741737,0.00471152,2366.7,2366.2,0.14852938]
[1769891741939,0.21152,2367.0,2366.2,0.14852938]
[1769891742142,0.21153,2366.9,2366.3,15.75717932]
[1769891742531,0.21154,2366.8,2366.3,15.75717932]
[1769891742737,0.15777545,2366.8,2365.7,0.00400492]
[1769891743043,0.21158,2366.3,2365.8,15.29033515]
[1769891743444,0.16142588,2366.8,2365.8,15.29033515]
[1769891743840,0.15777545,2366.7,2365.7,0.00400492]
[1769891744143,0.21162,2365.9,2365.7,0.00400492]
[1769891744342,0.21162,2365.9,2365.1,0.14852938]
[1769891744644,0.21162,2365.9,2365.2,15.01510453]
[1769891744839,0.21162,2365.9,2365.2,0.14852938]
[1769891745040,0.21162,2365.9,2365.3,14.86657515]
[1769891745236,0.21162,2365.9,2365.3,14.87139867]
[1769891745436,0.16142588,2366.8,2365.4,0.14852938]
[1769891745745,0.21159,2366.2,2365.4,0.14852938]
[1769891745942,0.67380823,2366.2,2365.4,0.14852938]
[1769891746143,0.21159,2366.2,2365.4,0.14852938]
[1769891746343,0.16142588,2366.8,2365.6,0.14852938]
[1769891746543,0.21156,2366.6,2365.6,0.14852938]
[1769891746743,0.21156,2366.5,2365.6,0.14852938]
[1769891746939,0.21156,2366.5,2365.3,0.00482352]
[1769891746940,0.21156,2366.5,2365.7,15.01510453]
[1769891747142,0.21156,2366.5,2365.7,0.14852938]
[1769891747338,0.15777545,2366.1,2365.8,14.41961515]
[1769891747543,0.21164,2365.7,2365.5,13.96596515]
[1769891747741,2.42178975,2366.8,2365.5,13.96596515]
[1769891747946,0.21162,2365.9,2365.3,0.00482352]
[1769891748147,0.21162,2365.9,2365.4,13.36741764]
[1769891748948,0.21165,2365.6,2365.4,12.7674736]
[1769891749246,2.41813932,2366.6,2365.4,12.7674736]
[1769891749446,2.41813932,2366.6,2365.4,12.93056986]
[1769891749447,0.21163,2365.8,2365.4,12.93056986]
[1769891749844,2.41813932,2366.6,2365.5,0.16309626]
[1769891750047,0.2116,2366.1,2365.5,0.16309626]
[1769891750243,0.2116,2366.1,2365.7,0.16309626]
[1769891750648,2.87474318,2366.8,2365.9,0.16309626]
[1769891750845,0.15777545,2366.6,2365.5,12.7674736]
[1769891751050,0.15777545,2366.4,2365.5,12.7674736]
[1769891751255,0.21163,2365.8,2365.3,0.00482352]
[1769891751550,0.09138,2365.8,2365.4,12.7674736]
[1769891752648,0.09138,2365.8,2365.3,0.00482352]
[1769891752849,0.09138,2365.8,2365.5,12.7674736]
[1769891753649,2.46746054,2366.5,2365.6,0.14852938]
[1769891753849,0.21156,2366.5,2365.7,0.14852938]
[1769891754347,0.21156,2366.5,2365.9,0.14852938]
[1769891755248,0.21158,2366.3,2366.0,12.7674736]
[1769891755447,0.21158,2366.3,2366.0,12.91600298]
[1769891756154,0.21158,2366.3,2366.1,0.14852938]
[1769891756354,0.45660386,2366.8,2366.1,0.14852938]
[1769891756551,0.45660386,2366.8,2366.2,12.7674736]
[1769891757254,0.21158,2366.3,2366.2,12.7674736]
[1769891757855,0.45660386,2366.8,2366.2,12.7674736]
[1769891758251,0.21158,2366.3,2366.2,12.7674736]
[1769891758451,0.45660386,2366.8,2366.2,12.7674736]
[1769891758948,0.45660386,2366.8,2366.2,12.3149436]
[1769891759148,0.21158,2366.3,2366.2,11.8514536]
[1769891759350,0.21161,2366.0,2365.5,0.14852938]
[1769891759556,0.21162,2365.9,2365.5,0.14852938]
[1769891759756,0.21162,2365.9,2365.6,9.3077936]
[1769891760347,2.481,2366.5,2365.7,0.14852938]
[1769891760558,0.21161,2366.0,2365.6,9.3077936]
[1769891760859,0.21161,2366.0,2365.6,9.45632298]
[1769891761353,2.481,2366.5,2365.7,0.14852938]
[1769891761856,2.481,2366.5,2365.8,9.3077936]
[1769891762060,0.21161,2366.0,2365.8,9.3077936]
[1769891762257,2.481,2366.5,2365.8,9.3077936]
[1769891762560,2.9240644,2366.8,2365.9,0.14852938]
[1769891762757,0.21157,2366.4,2365.9,0.14852938]
[1769891762958,0.21158,2366.4,2366.0,9.3077936]
[1769891763158,0.21158,2366.4,2366.0,9.45632298]
[1769891763459,0.00365043,2366.8,2366.1,0.14852938]
[1769891763658,0.00365043,2366.8,2366.1,9.45632298]
[1769891763855,2.62523599,2368.2,2366.2,0.14852938]
[1769891764059,0.15777545,2368.1,2366.4,0.0134142]
[1769891764358,0.21142,2368.1,2366.5,7.52291421]
[1769891764553,0.21147,2367.6,2366.5,9.3077936]
[1769891764755,0.16311404,2367.4,2366.5,9.3077936]
[1769891764957,0.37461404,2367.2,2366.5,9.3077936]
[1769891765261,0.00468399,2367.6,2366.5,9.3077936]
[1769891765455,0.16311404,2368.2,2366.6,9.30310961]
[1769891765757,0.21145,2367.8,2366.6,9.30310961]
[1769891766452,0.21659113,2367.8,2366.6,9.30310961]
[1769891766654,0.16311404,2367.6,2366.6,9.30310961]
[1769891766960,0.00514113,2367.8,2366.6,9.30310961]
[1769891767858,5.85046054,2368.7,2366.5,3.665]
[1769891767859,0.16285339,2368.6,2366.5,3.87656]
[1769891768061,2.48,2369.0,2366.5,3.87656]
[1769891768062,0.21142,2368.1,2366.7,9.29796848]
[1769891768458,0.21137,2368.7,2366.7,9.29796848]
[1769891768660,0.21672321,2368.7,2366.7,17.03242269]
[1769891768853,0.21672321,2368.7,2367.0,0.21152]
[1769891769057,0.00535321,2368.7,2367.0,7.52616083]
[1769891769254,0.2114,2368.4,2367.1,9.29796848]
[1769891769463,0.2114,2368.3,2367.1,9.29796848]
[1769891769969,0.37437208,2368.0,2367.1,9.29796848]
[1769891770162,0.37440208,2367.7,2367.1,9.29796848]
[1769891770363,0.00535321,2368.7,2367.1,9.29796848]
[1769891770665,0.16294208,2369.4,2367.2,19.98718948]
[1769891770858,3.383,2370.1,2367.2,19.98718948]
[1769891770859,0.37423208,2369.6,2367.5,7.73438421]
[1769891771057,0.21129,2369.6,2367.8,0.21144]
[1769891771262,37.08834447,2370.7,2368.0,7.52291421]
[1769891771263,0.21123,2370.2,2368.0,7.52291421]
[1769891771464,0.1628209,2370.7,2368.4,0.21139]
[1769891771663,0.1628209,2370.1,2368.6,6.25592063]
[1769891771960,0.4671458,2370.7,2368.5,3.382]
[1769891771961,0.1628209,2369.5,2368.5,3.382]
[1769891772168,0.1628209,2369.3,2368.6,9.08127527]
[1769891772363,0.4563623,2369.4,2368.6,9.08127527]
[1769891772565,0.4563623,2369.3,2368.6,9.08127527]
[1769891772967,0.6191832,2369.1,2368.6,9.08127527]
[1769891773161,0.16171389,2369.0,2367.6,0.00298791]
[1769891773368,0.16171389,2368.6,2367.7,7.70847538]
[1769891773564,0.16171389,2368.6,2367.5,7.70847538]
[1769891773764,0.16171389,2368.6,2367.5,7.71146329]
[1769891773966,0.21137,2368.7,2367.6,0.00298791]
[1769891774162,0.21137,2368.7,2367.6,7.71146329]
[1769891774769,0.16171389,2368.9,2367.7,0.00298791]
[1769891775067,0.16171389,2368.6,2367.6,7.70847538]
[1769891775468,0.21135,2368.9,2367.7,0.0108892]
[1769891775666,0.00352328,2369.0,2367.7,0.0108892]
[1769891775866,0.00352328,2369.0,2367.6,7.70847538]
[1769891775867,0.1633384,2369.0,2367.8,7.70847538]
[1769891776069,0.1633384,2369.0,2367.9,0.0108892]
[1769891776365,0.00352328,2369.0,2367.9,0.0108892]
[1769891776566,0.15981512,2369.6,2368.1,0.0108892]
[1769891776962,0.15981512,2370.2,2368.3,0.00736592]
[1769891777158,0.15981512,2370.1,2368.3,0.00736592]
[1769891777363,0.37107512,2370.0,2368.5,0.00834269]
[1769891777564,0.15981512,2369.8,2368.5,0.00834269]
[1769891777758,0.00394589,2370.0,2368.7,0.00834269]
[1769891777959,0.00394589,2370.0,2368.8,0.00834269]
[1769891778264,0.00394589,2370.0,2368.9,0.00834269]
[1769891778668,0.37102512,2370.5,2369.1,0.00834269]
[1769891778868,0.16100944,2370.2,2369.2,7.71287218]
[1769891779067,0.16100944,2370.2,2369.2,0.0043968]
[1769891779270,0.4563623,2370.1,2369.3,7.70847538]
[1769891779478,0.15981512,2368.4,2366.9,0.00679645]
[1769891779763,0.15981512,2367.9,2366.2,0.00679645]
[1769891779968,0.21155,2366.7,2365.4,3.38779645]
[1769891780165,0.15981512,2366.6,2365.4,3.381]
[1769891780366,0.15981512,2366.0,2365.4,0.00451048]
[1769891780671,0.15981512,2365.9,2365.4,0.00451048]
[1769891780866,0.15981512,2366.5,2365.4,0.00451048]
[1769891781067,0.21488891,2366.6,2365.4,0.00451048]
[1769891781068,0.16066353,2366.1,2365.4,0.00451048]
[1769891781570,0.4563623,2366.0,2365.4,0.00451048]
[1769891781767,0.4563623,2366.1,2365.4,0.00451048]
[1769891781963,0.21157,2366.4,2365.4,0.00451048]
[1769891782161,0.61702583,2366.3,2365.4,0.00451048]
[1769891782372,0.61702583,2365.9,2365.4,0.00451048]
[1769891782568,0.21159,2366.2,2365.4,0.00451048]
[1769891784469,0.16066353,2366.4,2365.4,0.00451048]
[1769891784669,0.00332891,2366.6,2365.4,0.00451048]
[1769891785471,0.62026974,2366.6,2365.4,0.00451048]
[1769891785667,0.16057853,2365.8,2365.4,0.00451048]
[1769891785869,0.21162,2365.9,2364.6,0.00525862]
[1769891786066,0.21162,2365.9,2364.9,2.888]
[1769891786272,0.16057853,2365.8,2364.9,2.888]
[1769891786772,0.16057853,2365.8,2364.9,2.89219658]
[1769891787077,0.21162,2365.9,2364.9,2.89219658]
[1769891787273,0.21162,2365.9,2364.9,0.00419658]
[1769891787678,0.37546786,2366.6,2365.0,0.00525779]
[1769891788277,0.37214895,2366.4,2365.0,0.00525779]
[1769891788472,0.21157,2366.4,2365.0,0.00525779]
[1769891788671,0.00332891,2366.6,2365.0,0.00525779]
[1769891789480,0.00210712,2366.6,2365.4,0.00122179]
[1769891789682,0.21152,2367.0,2365.4,0.00122179]
[1769891789983,0.21148,2367.5,2365.9,0.21161]
[1769891790281,0.37463784,2368.0,2366.3,0.21158]
[1769891790482,5.83234426,2369.8,2366.3,0.21158]
[1769891790483,0.16320784,2368.8,2366.8,0.21153]
[1769891790776,0.16320784,2368.2,2366.8,5.86663867]
[1769891791079,0.37462784,2368.2,2366.8,0.00463867]
[1769891791273,0.21143,2368.0,2366.9,7.03]
[1769891791678,0.21138,2368.6,2366.9,7.03]
[1769891791870,0.21139,2368.4,2366.9,7.03]
[1769891792273,0.16361918,2368.0,2366.8,0.00463867]
[1769891792477,0.16361918,2368.7,2366.8,5.86663867]
[1769891792673,0.44745037,2368.8,2366.8,5.86663867]
[1769891792674,0.21138,2368.6,2366.9,0.21152]
[1769891793083,0.16361918,2368.5,2366.9,0.21152]
[1769891793280,0.3751113,2368.3,2367.0,3.382]
[1769891793486,0.21141,2368.3,2367.0,3.382]
[1769891793791,0.00460183,2368.8,2366.8,0.00463867]
[1769891793792,0.1637013,2368.0,2366.8,0.00463867]
[1769891793996,0.1637013,2368.0,2366.9,3.646]
[1769891794489,0.1637013,2368.4,2366.8,4.99444857]
[1769891794692,0.1637013,2367.8,2366.8,0.00463867]
[1769891794890,0.1637013,2368.2,2366.8,0.00463867]
[1769891795289,0.4563623,2368.0,2366.8,0.00463867]
[1769891795484,0.16341815,2368.1,2366.8,0.00463867]
[1769891795987,0.16341815,2368.7,2366.8,0.21616867]
[1769891796188,0.16341815,2368.5,2366.8,0.21616867]
[1769891796590,0.16341815,2368.4,2366.8,0.21616867]
[1769891796888,0.16341815,2368.4,2366.9,0.00192267]
[1769891797088,0.61978045,2368.4,2366.9,0.00192267]
[1769891797290,0.16229338,2367.8,2366.8,0.00463867]
[1769891797593,0.16229338,2368.1,2366.8,0.00463867]
[1769891797887,0.16229338,2368.0,2366.8,0.00463867]
[1769891798091,0.61865568,2367.8,2366.8,0.00463867]
[1769891798493,0.4563623,2367.7,2366.8,0.00463867]
[1769891798994,0.16229338,2367.1,2365.8,8.3718099]
[1769891799192,0.16229338,2367.1,2365.8,6.868]
[1769891799400,0.16025478,2367.0,2365.9,3.637]
[1769891799592,0.16025478,2367.0,2365.9,3.64299986]
[1769891799790,0.16025478,2366.8,2365.6,4.9898099]
[1769891799997,0.16025478,2366.5,2365.6,0.00504938]
[1769891800391,0.4563623,2366.4,2365.6,0.00504938]
[1769891800591,0.61661708,2366.5,2365.6,0.00504938]
[1769891800996,0.4563623,2366.4,2365.6,0.00504938]
[1769891801399,0.4563623,2366.3,2365.6,0.00504938]
[1769891801603,0.4563623,2366.4,2365.6,0.00504938]
[1769891802001,0.16025478,2366.5,2365.6,0.00504938]
[1769891802002,0.4563623,2366.3,2365.6,0.00504938]
[1769891802300,0.4563623,2366.4,2365.6,0.00504938]
[1769891802599,0.00506159,2366.8,2365.7,0.00652167]
[1769891802803,0.00506159,2366.8,2365.8,0.00652167]
[1769891803101,0.00506159,2366.8,2365.9,0.00612368]
[1769891803502,0.16275907,2367.0,2365.9,4.9898099]
[1769891803701,0.16275907,2366.9,2366.0,7.016]
[1769891804093,0.21149,2367.3,2366.0,7.016]
[1769891804302,0.16275907,2367.2,2366.0,7.016]
[1769891804501,0.16275907,2367.2,2365.8,3.635]
[1769891804502,0.16275907,2366.9,2365.8,3.635]
[1769891804703,0.4563623,2366.7,2365.8,3.63606209]
[1769891805100,0.21151,2367.1,2365.9,0.00106209]
[1769891805595,0.0038759,2367.2,2365.9,0.00106209]
[1769891805801,0.0038759,2367.2,2366.2,0.00329462]
[1769891805999,0.00058128,2367.2,2366.3,0.00329462]
[1769891806303,0.16329011,2368.0,2366.5,4.9898099]
[1769891806601,0.16329011,2368.0,2366.6,4.9898099]
[1769891806799,0.37477011,2367.5,2366.4,8.6258099]
[1769891807003,0.37477011,2367.5,2366.4,3.636]
[1769891807199,0.45530021,2367.4,2366.4,3.636]
[1769891807398,0.45530021,2367.4,2366.4,8.6258099]
[1769891807599,0.16278482,2367.4,2366.4,4.9898099]
[1769891807899,3.36950628,2366.8,2364.5,9.3599025]
[1769891808098,3.36950628,2366.8,2364.6,0.16329011]
[1769891808601,0.2116,2366.1,2364.7,10.7558602]
[1769891808897,3.36950628,2366.8,2364.7,10.922326]
[1769891809099,0.16212053,2366.5,2364.7,0.00317569]
[1769891809603,3.36950628,2366.8,2364.7,0.00317569]
[1769891809604,0.16212053,2365.8,2364.7,0.00317569]
[1769891809805,0.16560666,2365.8,2364.7,0.00317569]
[1769891810105,0.21166,2365.4,2364.7,0.00317569]
[1769891810293,0.37378053,2365.4,2364.7,0.00317569]
[1769891810499,0.16212053,2365.3,2363.9,0.17893746]
[1769891810695,0.66223572,2365.4,2364.1,0.18208203]
[1769891811096,0.66223572,2365.4,2364.3,0.18208203]
[1769891811403,0.21166,2365.4,2364.4,0.1813659]
[1769891811604,0.21166,2365.4,2364.5,10.9372261]
[1769891812701,0.21166,2365.4,2364.5,0.1813659]
[1769891812896,0.21166,2365.4,2364.5,10.7558602]
[1769891813303,0.16212053,2365.3,2364.3,0.00340328]
[1769891813497,0.16212053,2365.3,2364.4,10.7558602]
[1769891813700,0.37380053,2365.3,2364.4,10.7558602]
[1769891814006,0.45314585,2365.7,2364.3,0.00340328]
[1769891814007,0.37382053,2365.0,2364.3,0.00340328]
[1769891814603,0.37383053,2364.9,2363.7,0.18858038]
[1769891814909,0.37383053,2364.9,2363.4,0.92504351]
[1769891814910,0.37383053,2364.9,2363.8,10.95048738]